[Event "Titled Tuesday Blitz November 22 Early 2022"]
[White "Salinas Herrera, Pablo"]
[Black "Wagner, Dennis"]
[WhiteFideId "3407128"]
[BlackFideId "24650684"]
[WhiteElo "2557"]
[BlackElo "2470"]
[Result "1-0"]
[Round "09"]
[TimeControl "180+1"]
[Date "2022.11.22"]
[WhiteClock "0:00:10"]
[BlackClock "0:00:02"]

1. e4 {[%clk 0:02:53]}  e5 {[%clk 0:02:59]} 2. Nf3 {[%clk 0:02:52]}  Nc6 {[%clk 0:03:00]} 3. Bc4 {[%clk 0:02:52]}  Bc5 {[%clk 0:02:59]} 4. c3 {[%clk 0:02:52]}  Nf6 {[%clk 0:02:59]} 5. d4 {[%clk 0:02:53]}  exd4 {[%clk 0:03:00]} 6. cxd4 {[%clk 0:02:54]}  Bb4+ {[%clk 0:03:00]} 7. Nc3 {[%clk 0:02:54]}  Nxe4 {[%clk 0:03:00]} 8. O-O {[%clk 0:02:55]}  Bxc3 {[%clk 0:02:58]} 9. d5 {[%clk 0:02:55]}  Bf6 {[%clk 0:02:57]} 10. Re1 {[%clk 0:02:56]}  Ne7 {[%clk 0:02:57]} 11. Rxe4 {[%clk 0:02:56]}  d6 {[%clk 0:02:58]} 12. g4 {[%clk 0:02:57]}  O-O {[%clk 0:02:51]} 13. g5 {[%clk 0:02:56]}  Be5 {[%clk 0:02:52]} 14. Nxe5 {[%clk 0:02:57]}  Bf5 {[%clk 0:02:52]} 15. Re1 {[%clk 0:02:44]}  dxe5 {[%clk 0:02:52]} 16. Rxe5 {[%clk 0:02:45]}  Qd7 {[%clk 0:02:41]} 17. Qf3 {[%clk 0:02:38]}  Ng6 {[%clk 0:02:36]} 18. Re1 {[%clk 0:02:15]}  Rae8 {[%clk 0:02:35]} 19. Bd2 {[%clk 0:02:14]}  Ne5 {[%clk 0:02:33]} 20. Qf4 {[%clk 0:02:11]}  Nxc4 {[%clk 0:01:43]} 21. Qxc4 {[%clk 0:02:09]}  Rd8 {[%clk 0:01:28]} 22. Re5 {[%clk 0:01:57]}  Rfe8 {[%clk 0:01:19]} 23. Rae1 {[%clk 0:01:56]}  Rxe5 {[%clk 0:01:17]} 24. Rxe5 {[%clk 0:01:57]}  Bg6 {[%clk 0:01:16]} 25. Bc3 {[%clk 0:01:45]}  c6 {[%clk 0:01:09]} 26. dxc6 {[%clk 0:01:38]}  bxc6 {[%clk 0:01:04]} 27. Re3 {[%clk 0:00:58]}  Qd1+ {[%clk 0:00:59]} 28. Kg2 {[%clk 0:00:50]}  Bd3 {[%clk 0:00:56]} 29. Qf4 {[%clk 0:00:36]}  Qf1+ {[%clk 0:00:45]} 30. Kg3 {[%clk 0:00:36]}  Be2 {[%clk 0:00:25]} 31. Kh4 {[%clk 0:00:23]}  Bd1 {[%clk 0:00:19]} 32. Re1 {[%clk 0:00:11]}  Qd3 {[%clk 0:00:18]} 33. Qe5 {[%clk 0:00:10]}  f6 {[%clk 0:00:11]} 34. gxf6 {[%clk 0:00:10]}  Qf3 {[%clk 0:00:06]} 35. Qe6+ {[%clk 0:00:09]}  Kf8 {[%clk 0:00:02]} 36. Qe7+ {[%clk 0:00:09]}  Kg8 {[%clk 0:00:02]} 37. Qxg7# {[%clk 0:00:10]} 1-0


[Site "https://www.chess.com"]

[Event "Titled Tuesday Blitz November 22 Early 2022"]
[White "Sanchez, Robert"]
[Black "Krzywda, Andrzej"]
[WhiteFideId "2034360"]
[BlackFideId "1114565"]
[WhiteElo "2314"]
[BlackElo "2149"]
[Result "0-1"]
[Round "09"]
[TimeControl "180+1"]
[Date "2022.11.23"]
[WhiteClock "0:00:10"]
[BlackClock "0:00:31"]

1. e4 {[%clk 0:03:00]}  c5 {[%clk 0:02:59]} 2. Nf3 {[%clk 0:03:01]}  d6 {[%clk 0:03:00]} 3. d4 {[%clk 0:03:01]}  cxd4 {[%clk 0:03:01]} 4. Nxd4 {[%clk 0:03:02]}  Nf6 {[%clk 0:03:01]} 5. Nc3 {[%clk 0:03:03]}  g6 {[%clk 0:03:02]} 6. Be3 {[%clk 0:03:03]}  Nc6 {[%clk 0:03:02]} 7. f3 {[%clk 0:03:02]}  h5 {[%clk 0:03:02]} 8. Qd2 {[%clk 0:03:03]}  Nxd4 {[%clk 0:03:02]} 9. Bxd4 {[%clk 0:03:03]}  Bh6 {[%clk 0:03:03]} 10. Be3 {[%clk 0:03:00]}  Bxe3 {[%clk 0:03:03]} 11. Qxe3 {[%clk 0:03:01]}  Be6 {[%clk 0:03:01]} 12. Bb5+ {[%clk 0:02:59]}  Kf8 {[%clk 0:03:01]} 13. O-O-O {[%clk 0:02:53]}  Qa5 {[%clk 0:03:01]} 14. Rhe1 {[%clk 0:02:29]}  Rc8 {[%clk 0:02:59]} 15. e5 {[%clk 0:02:23]}  dxe5 {[%clk 0:02:55]} 16. Qxe5 {[%clk 0:02:23]}  h4 {[%clk 0:02:44]} 17. Bf1 {[%clk 0:02:02]}  Qxe5 {[%clk 0:02:27]} 18. Rxe5 {[%clk 0:02:02]}  Kg7 {[%clk 0:02:27]} 19. Ne4 {[%clk 0:01:36]}  Nxe4 {[%clk 0:02:11]} 20. Rxe4 {[%clk 0:01:30]}  Rh5 {[%clk 0:02:02]} 21. b3 {[%clk 0:01:19]}  Rhc5 {[%clk 0:01:50]} 22. Rd2 {[%clk 0:01:13]}  h3 {[%clk 0:01:39]} 23. g4 {[%clk 0:01:11]}  Rc3 {[%clk 0:01:32]} 24. Bd3 {[%clk 0:01:02]}  b5 {[%clk 0:01:27]} 25. Kb2 {[%clk 0:00:58]}  a5 {[%clk 0:01:24]} 26. a3 {[%clk 0:00:58]}  R3c5 {[%clk 0:01:15]} 27. Rde2 {[%clk 0:00:50]}  Rb8 {[%clk 0:01:11]} 28. Re5 {[%clk 0:00:47]}  Rxe5 {[%clk 0:01:00]} 29. Rxe5 {[%clk 0:00:48]}  Bd7 {[%clk 0:01:00]} 30. Rxe7 {[%clk 0:00:45]}  Bc6 {[%clk 0:01:01]} 31. Be4 {[%clk 0:00:40]}  Be8 {[%clk 0:00:56]} 32. g5 {[%clk 0:00:35]}  Kf8 {[%clk 0:00:56]} 33. Rb7 {[%clk 0:00:31]}  Rd8 {[%clk 0:00:53]} 34. Bd3 {[%clk 0:00:25]}  Bc6 {[%clk 0:00:49]} 35. Rb6 {[%clk 0:00:21]}  Bxf3 {[%clk 0:00:48]} 36. Rxb5 {[%clk 0:00:21]}  Ra8 {[%clk 0:00:40]} 37. Re5 {[%clk 0:00:18]}  Bc6 {[%clk 0:00:32]} 38. Rc5 {[%clk 0:00:15]}  Bd7 {[%clk 0:00:32]} 39. Rc7 {[%clk 0:00:14]}  Be6 {[%clk 0:00:33]} 40. Bc4 {[%clk 0:00:13]}  Re8 {[%clk 0:00:29]} 41. Bxe6 {[%clk 0:00:13]}  Rxe6 {[%clk 0:00:30]} 42. b4 {[%clk 0:00:12]}  axb4 {[%clk 0:00:30]} 43. axb4 {[%clk 0:00:12]}  Re2 {[%clk 0:00:30]} 44. b5 {[%clk 0:00:12]}  Re5 {[%clk 0:00:30]} 45. c4 {[%clk 0:00:10]}  Re2+ {[%clk 0:00:31]} 46. Kb3 {[%clk 0:00:10]}  Rxh2 {[%clk 0:00:31]} 47. b6 {[%clk 0:00:10]}  Rh1 {[%clk 0:00:31]} 48. b7 {[%clk 0:00:10]}  Rb1+ {[%clk 0:00:31]} 49. Kc3 {[%clk 0:00:10]}  h2 {[%clk 0:00:31]} 0-1


[Site "https://www.chess.com"]

[Event "Titled Tuesday Blitz November 22 Early 2022"]
[White "Savic, Miroslav"]
[Black "Ansh M Shah"]
[WhiteFideId "14508494"]
[BlackFideId "25033379"]
[WhiteElo "2209"]
[BlackElo "2084"]
[Result "0-1"]
[Round "09"]
[TimeControl "180+1"]
[Date "2022.11.23"]
[WhiteClock "0:00:29"]
[BlackClock "0:00:52"]

1. Nf3 {[%clk 0:02:11]}  Nf6 {[%clk 0:02:58]} 2. c4 {[%clk 0:02:11]}  e6 {[%clk 0:02:59]} 3. Nc3 {[%clk 0:02:10]}  d5 {[%clk 0:02:57]} 4. d4 {[%clk 0:02:08]}  Be7 {[%clk 0:02:56]} 5. Bg5 {[%clk 0:02:07]}  O-O {[%clk 0:02:56]} 6. e3 {[%clk 0:02:06]}  c6 {[%clk 0:02:56]} 7. Qb3 {[%clk 0:02:03]}  Nbd7 {[%clk 0:02:56]} 8. O-O-O {[%clk 0:02:02]}  dxc4 {[%clk 0:02:55]} 9. Bxc4 {[%clk 0:02:01]}  b5 {[%clk 0:02:56]} 10. Bd3 {[%clk 0:01:59]}  a5 {[%clk 0:02:57]} 11. Ne4 {[%clk 0:01:55]}  a4 {[%clk 0:02:55]} 12. Qc2 {[%clk 0:01:55]}  Ba6 {[%clk 0:02:38]} 13. Nxf6+ {[%clk 0:01:51]}  Nxf6 {[%clk 0:02:37]} 14. Bxf6 {[%clk 0:01:50]}  Bxf6 {[%clk 0:02:38]} 15. Bxh7+ {[%clk 0:01:50]}  Kh8 {[%clk 0:02:38]} 16. Be4 {[%clk 0:01:43]}  b4 {[%clk 0:02:27]} 17. h4 {[%clk 0:01:33]}  Qb6 {[%clk 0:02:17]} 18. Ng5 {[%clk 0:01:25]}  b3 {[%clk 0:02:12]} 19. axb3 {[%clk 0:01:21]}  axb3 {[%clk 0:02:13]} 20. Qc3 {[%clk 0:01:17]}  Bb5 {[%clk 0:01:37]} 21. Kd2 {[%clk 0:01:10]}  c5 {[%clk 0:01:19]} 22. Bxa8 {[%clk 0:01:00]}  cxd4 {[%clk 0:01:16]} 23. exd4 {[%clk 0:00:34]}  Bxd4 {[%clk 0:01:12]} 24. Qf3 {[%clk 0:00:32]}  Qa5+ {[%clk 0:01:00]} 25. Kc1 {[%clk 0:00:31]}  Qa1+ {[%clk 0:00:59]} 26. Kd2 {[%clk 0:00:31]}  Qxb2+ {[%clk 0:00:58]} 27. Ke1 {[%clk 0:00:31]}  Bc3+ {[%clk 0:00:57]} 28. Qxc3 {[%clk 0:00:30]}  Qxc3+ {[%clk 0:00:58]} 29. Rd2 {[%clk 0:00:30]}  Rxa8 {[%clk 0:00:52]} 30. Nxf7+ {[%clk 0:00:29]}  Kg8 {[%clk 0:00:52]} 0-1


[Site "https://www.chess.com"]

[Event "Titled Tuesday Blitz November 22 Early 2022"]
[White "Seo, Jung Min"]
[Black "Shimanov, Aleksandr"]
[WhiteFideId "1734687"]
[BlackFideId "4198603"]
[WhiteElo "2455"]
[BlackElo "2605"]
[Result "1-0"]
[Round "09"]
[TimeControl "180+1"]
[Date "2022.11.22"]
[WhiteClock "0:00:07"]
[BlackClock "0:00:02"]

1. d4 {[%clk 0:02:59]}  Nf6 {[%clk 0:02:59]} 2. c4 {[%clk 0:02:59]}  g6 {[%clk 0:02:59]} 3. g3 {[%clk 0:02:58]}  Bg7 {[%clk 0:02:59]} 4. Bg2 {[%clk 0:02:59]}  O-O {[%clk 0:03:00]} 5. Nf3 {[%clk 0:03:00]}  d6 {[%clk 0:03:00]} 6. O-O {[%clk 0:03:00]}  Nc6 {[%clk 0:02:57]} 7. Nc3 {[%clk 0:03:00]}  e5 {[%clk 0:02:57]} 8. dxe5 {[%clk 0:02:57]}  dxe5 {[%clk 0:02:58]} 9. Qxd8 {[%clk 0:02:57]}  Rxd8 {[%clk 0:02:59]} 10. Bg5 {[%clk 0:02:57]}  h6 {[%clk 0:03:00]} 11. Bxf6 {[%clk 0:02:56]}  Bxf6 {[%clk 0:03:01]} 12. Nd5 {[%clk 0:02:57]}  Kg7 {[%clk 0:03:01]} 13. Nxc7 {[%clk 0:02:57]}  Rb8 {[%clk 0:03:02]} 14. e4 {[%clk 0:02:51]}  g5 {[%clk 0:02:59]} 15. Nd5 {[%clk 0:02:50]}  Be6 {[%clk 0:02:56]} 16. Rfd1 {[%clk 0:02:47]}  g4 {[%clk 0:02:45]} 17. Nd2 {[%clk 0:02:45]}  h5 {[%clk 0:02:42]} 18. Nb3 {[%clk 0:02:35]}  b6 {[%clk 0:02:37]} 19. Rac1 {[%clk 0:02:32]}  Bg5 {[%clk 0:02:26]} 20. Ra1 {[%clk 0:02:28]}  h4 {[%clk 0:02:23]} 21. a4 {[%clk 0:02:15]}  a5 {[%clk 0:02:08]} 22. Bf1 {[%clk 0:02:01]}  Rh8 {[%clk 0:01:52]} 23. Nc7 {[%clk 0:01:46]}  Bc8 {[%clk 0:01:11]} 24. Rd6 {[%clk 0:01:45]}  Nb4 {[%clk 0:01:00]} 25. Nd5 {[%clk 0:01:41]}  Nxd5 {[%clk 0:00:53]} 26. Rxd5 {[%clk 0:01:37]}  hxg3 {[%clk 0:00:47]} 27. hxg3 {[%clk 0:01:36]}  Be6 {[%clk 0:00:47]} 28. Rxe5 {[%clk 0:01:30]}  Bf6 {[%clk 0:00:47]} 29. Rb5 {[%clk 0:01:30]}  Bd7 {[%clk 0:00:34]} 30. Rd5 {[%clk 0:01:26]}  Bc6 {[%clk 0:00:34]} 31. Rd6 {[%clk 0:01:26]}  Bxe4 {[%clk 0:00:33]} 32. Bg2 {[%clk 0:01:25]}  Bg6 {[%clk 0:00:25]} 33. c5 {[%clk 0:00:37]}  bxc5 {[%clk 0:00:23]} 34. Nxc5 {[%clk 0:00:37]}  Rxb2 {[%clk 0:00:22]} 35. Rf1 {[%clk 0:00:35]}  Rb4 {[%clk 0:00:19]} 36. Ra6 {[%clk 0:00:19]}  Bd4 {[%clk 0:00:12]} 37. Ne4 {[%clk 0:00:15]}  Rxa4 {[%clk 0:00:11]} 38. Nd6 {[%clk 0:00:14]}  Ra2 {[%clk 0:00:08]} 39. Be4 {[%clk 0:00:14]}  Rh6 {[%clk 0:00:04]} 40. Bxg6 {[%clk 0:00:13]}  fxg6 {[%clk 0:00:05]} 41. Nc4 {[%clk 0:00:11]}  Rh5 {[%clk 0:00:05]} 42. Rd6 {[%clk 0:00:09]}  Bc5 {[%clk 0:00:05]} 43. Rd7+ {[%clk 0:00:10]}  Kh6 {[%clk 0:00:05]} 44. Rc7 {[%clk 0:00:09]}  Rf5 {[%clk 0:00:06]} 45. Ne3 {[%clk 0:00:08]}  Rfxf2 {[%clk 0:00:02]} 46. Rxc5 {[%clk 0:00:07]}  Rf3 {[%clk 0:00:02]} 47. Nxg4+ {[%clk 0:00:07]} 1-0


[Site "https://www.chess.com"]

[Event "Titled Tuesday Blitz November 22 Early 2022"]
[White "Shuvalova, Polina"]
[Black "Rakhmanov, Aleksandr"]
[WhiteFideId "24171760"]
[BlackFideId "4173708"]
[WhiteElo "2342"]
[BlackElo "2530"]
[Result "1-0"]
[Round "09"]
[TimeControl "180+1"]
[Date "2022.11.23"]
[WhiteClock "0:00:20"]
[BlackClock "0:00:01"]

1. d4 {[%clk 0:03:00]}  d5 {[%clk 0:02:56]} 2. Nf3 {[%clk 0:03:00]}  e6 {[%clk 0:02:57]} 3. Bf4 {[%clk 0:03:00]}  Bd6 {[%clk 0:02:53]} 4. e3 {[%clk 0:02:59]}  Ne7 {[%clk 0:02:52]} 5. Bxd6 {[%clk 0:02:58]}  cxd6 {[%clk 0:02:52]} 6. c4 {[%clk 0:02:58]}  dxc4 {[%clk 0:02:50]} 7. Bxc4 {[%clk 0:02:58]}  d5 {[%clk 0:02:50]} 8. Bd3 {[%clk 0:02:57]}  Nbc6 {[%clk 0:02:51]} 9. Nc3 {[%clk 0:02:56]}  a6 {[%clk 0:02:40]} 10. Rc1 {[%clk 0:02:55]}  Qd6 {[%clk 0:02:40]} 11. O-O {[%clk 0:02:55]}  O-O {[%clk 0:02:38]} 12. Na4 {[%clk 0:02:54]}  Bd7 {[%clk 0:02:36]} 13. a3 {[%clk 0:02:52]}  f6 {[%clk 0:02:30]} 14. Nc5 {[%clk 0:02:47]}  Rab8 {[%clk 0:02:31]} 15. b4 {[%clk 0:02:45]}  Be8 {[%clk 0:02:28]} 16. h3 {[%clk 0:02:34]}  Bh5 {[%clk 0:02:21]} 17. Be2 {[%clk 0:02:34]}  Rfc8 {[%clk 0:02:19]} 18. Qd2 {[%clk 0:02:32]}  Na7 {[%clk 0:02:04]} 19. a4 {[%clk 0:02:27]}  Nac6 {[%clk 0:02:00]} 20. Rb1 {[%clk 0:02:24]}  Bf7 {[%clk 0:01:55]} 21. Rfc1 {[%clk 0:02:20]}  Qd8 {[%clk 0:01:53]} 22. Ne1 {[%clk 0:02:01]}  a5 {[%clk 0:01:51]} 23. Ned3 {[%clk 0:01:54]}  axb4 {[%clk 0:01:50]} 24. Nxb4 {[%clk 0:01:55]}  Nxb4 {[%clk 0:01:50]} 25. Rxb4 {[%clk 0:01:56]}  b6 {[%clk 0:01:47]} 26. Na6 {[%clk 0:01:47]}  Rb7 {[%clk 0:01:35]} 27. Rcb1 {[%clk 0:01:42]}  Nc6 {[%clk 0:01:28]} 28. Rb5 {[%clk 0:01:38]}  Ra8 {[%clk 0:01:26]} 29. Nc5 {[%clk 0:01:24]}  Rbb8 {[%clk 0:01:26]} 30. Nd3 {[%clk 0:01:04]}  Rxa4 {[%clk 0:01:23]} 31. Qc2 {[%clk 0:01:01]}  Rc4 {[%clk 0:01:17]} 32. Qb2 {[%clk 0:01:02]}  Bg6 {[%clk 0:00:51]} 33. Rxb6 {[%clk 0:00:58]}  Rxb6 {[%clk 0:00:47]} 34. Qxb6 {[%clk 0:00:58]}  Qxb6 {[%clk 0:00:46]} 35. Rxb6 {[%clk 0:00:59]}  Bxd3 {[%clk 0:00:31]} 36. Bxd3 {[%clk 0:00:59]}  Rc1+ {[%clk 0:00:31]} 37. Kh2 {[%clk 0:00:59]}  Kf7 {[%clk 0:00:14]} 38. Bxh7 {[%clk 0:00:31]}  f5 {[%clk 0:00:09]} 39. Rb7+ {[%clk 0:00:31]}  Ne7 {[%clk 0:00:04]} 40. Bg6+ {[%clk 0:00:25]}  Kf6 {[%clk 0:00:02]} 41. Be8 {[%clk 0:00:23]}  g5 {[%clk 0:00:02]} 42. g3 {[%clk 0:00:21]}  Rb1 {[%clk 0:00:01]} 43. Rxb1 {[%clk 0:00:20]} 1-0


[Site "https://www.chess.com"]

[Event "Titled Tuesday Blitz November 22 Early 2022"]
[White "Svane, Rasmus"]
[Black "Kamsky, Gata"]
[WhiteFideId "4657101"]
[BlackFideId "2000024"]
[WhiteElo "2674"]
[BlackElo "2666"]
[Result "1/2-1/2"]
[Round "09"]
[TimeControl "180+1"]
[Date "2022.11.22"]
[WhiteClock "0:00:03"]
[BlackClock "0:00:16"]

1. Nf3 {[%clk 0:03:00]}  Nf6 {[%clk 0:02:59]} 2. g3 {[%clk 0:03:00]}  g6 {[%clk 0:02:59]} 3. Bg2 {[%clk 0:03:01]}  Bg7 {[%clk 0:02:59]} 4. O-O {[%clk 0:03:01]}  O-O {[%clk 0:02:59]} 5. c4 {[%clk 0:03:01]}  d6 {[%clk 0:02:59]} 6. d4 {[%clk 0:03:01]}  Nc6 {[%clk 0:02:56]} 7. Nc3 {[%clk 0:03:00]}  a5 {[%clk 0:02:54]} 8. d5 {[%clk 0:02:54]}  Nb4 {[%clk 0:02:52]} 9. a3 {[%clk 0:02:50]}  Na6 {[%clk 0:02:52]} 10. Nd4 {[%clk 0:02:51]}  Nc5 {[%clk 0:02:46]} 11. b3 {[%clk 0:02:51]}  e5 {[%clk 0:02:43]} 12. dxe6 {[%clk 0:02:51]}  fxe6 {[%clk 0:02:43]} 13. Bb2 {[%clk 0:02:36]}  e5 {[%clk 0:02:13]} 14. Ndb5 {[%clk 0:02:35]}  Ne8 {[%clk 0:02:02]} 15. b4 {[%clk 0:02:12]}  Ne6 {[%clk 0:01:57]} 16. Ne4 {[%clk 0:02:10]}  Kh8 {[%clk 0:01:53]} 17. Qd2 {[%clk 0:02:08]}  Nf6 {[%clk 0:01:52]} 18. Rad1 {[%clk 0:01:57]}  Nxe4 {[%clk 0:01:51]} 19. Bxe4 {[%clk 0:01:57]}  Ng5 {[%clk 0:01:50]} 20. Bg2 {[%clk 0:01:35]}  Nh3+ {[%clk 0:01:49]} 21. Bxh3 {[%clk 0:01:35]}  Bxh3 {[%clk 0:01:49]} 22. Rfe1 {[%clk 0:01:36]}  axb4 {[%clk 0:01:49]} 23. axb4 {[%clk 0:01:35]}  Qf6 {[%clk 0:01:39]} 24. f3 {[%clk 0:01:30]}  Qf7 {[%clk 0:01:37]} 25. Qc3 {[%clk 0:01:12]}  Be6 {[%clk 0:01:30]} 26. c5 {[%clk 0:01:12]}  d5 {[%clk 0:01:30]} 27. c6 {[%clk 0:01:02]}  d4 {[%clk 0:01:26]} 28. Qc1 {[%clk 0:00:52]}  b6 {[%clk 0:01:25]} 29. Nxd4 {[%clk 0:00:39]}  exd4 {[%clk 0:01:25]} 30. Bxd4 {[%clk 0:00:40]}  Rad8 {[%clk 0:01:12]} 31. Qe3 {[%clk 0:00:38]}  Bc4 {[%clk 0:01:05]} 32. Bxg7+ {[%clk 0:00:32]}  Qxg7 {[%clk 0:01:05]} 33. Rd7 {[%clk 0:00:30]}  Rxd7 {[%clk 0:01:02]} 34. cxd7 {[%clk 0:00:31]}  Bb5 {[%clk 0:01:01]} 35. Rc1 {[%clk 0:00:24]}  c5 {[%clk 0:00:57]} 36. bxc5 {[%clk 0:00:24]}  bxc5 {[%clk 0:00:57]} 37. Rxc5 {[%clk 0:00:24]}  Bxd7 {[%clk 0:00:57]} 38. Rc7 {[%clk 0:00:25]}  h5 {[%clk 0:00:44]} 39. Kf2 {[%clk 0:00:24]}  Rf7 {[%clk 0:00:43]} 40. Qc3 {[%clk 0:00:20]}  Qxc3 {[%clk 0:00:42]} 41. Rxc3 {[%clk 0:00:21]}  Kg7 {[%clk 0:00:42]} 42. h4 {[%clk 0:00:21]}  Be6 {[%clk 0:00:42]} 43. Rc6 {[%clk 0:00:19]}  Kf6 {[%clk 0:00:40]} 44. Rc2 {[%clk 0:00:15]}  Ra7 {[%clk 0:00:40]} 45. Ke3 {[%clk 0:00:14]}  Ra2 {[%clk 0:00:40]} 46. Rxa2 {[%clk 0:00:12]}  Bxa2 {[%clk 0:00:40]} 47. Kf4 {[%clk 0:00:13]}  Bb3 {[%clk 0:00:39]} 48. e4 {[%clk 0:00:11]}  Bd1 {[%clk 0:00:39]} 49. g4 {[%clk 0:00:09]}  Ke6 {[%clk 0:00:34]} 50. g5 {[%clk 0:00:05]}  Kd6 {[%clk 0:00:33]} 51. Ke3 {[%clk 0:00:04]}  Kc5 {[%clk 0:00:22]} 52. f4 {[%clk 0:00:03]}  Bc2 {[%clk 0:00:21]} 53. f5 {[%clk 0:00:02]}  gxf5 {[%clk 0:00:20]} 54. e5 {[%clk 0:00:02]}  Kd5 {[%clk 0:00:19]} 55. Kf4 {[%clk 0:00:01]}  Ke6 {[%clk 0:00:18]} 56. g6 {[%clk 0:00:01]}  Bb3 {[%clk 0:00:18]} 57. Kg5 {[%clk 0:00:02]}  Kxe5 {[%clk 0:00:18]} 58. Kxh5 {[%clk 0:00:02]}  Kf6 {[%clk 0:00:18]} 59. Kh6 {[%clk 0:00:02]}  f4 {[%clk 0:00:18]} 60. g7 {[%clk 0:00:03]}  f3 {[%clk 0:00:17]} 61. h5 {[%clk 0:00:03]}  f2 {[%clk 0:00:17]} 62. g8=Q {[%clk 0:00:03]}  Bxg8 {[%clk 0:00:16]} 1/2-1/2


[Site "https://www.chess.com"]

[Event "Titled Tuesday Blitz November 22 Early 2022"]
[White "Tang, Andrew"]
[Black "Tanenbaum, Zachary"]
[WhiteFideId "2059630"]
[BlackFideId "2060850"]
[WhiteElo "2581"]
[BlackElo "2175"]
[Result "1-0"]
[Round "09"]
[TimeControl "180+1"]
[Date "2022.11.22"]
[WhiteClock "0:01:36"]
[BlackClock "0:01:31"]

1. d4 {[%clk 0:03:00]}  d5 {[%clk 0:03:00]} 2. Bf4 {[%clk 0:03:00]}  Nf6 {[%clk 0:03:00]} 3. e3 {[%clk 0:03:01]}  c5 {[%clk 0:03:01]} 4. dxc5 {[%clk 0:03:02]}  Nc6 {[%clk 0:03:00]} 5. Bb5 {[%clk 0:03:02]}  Bd7 {[%clk 0:03:00]} 6. c3 {[%clk 0:02:57]}  e6 {[%clk 0:02:59]} 7. b4 {[%clk 0:02:57]}  a5 {[%clk 0:02:59]} 8. Qb3 {[%clk 0:02:58]}  axb4 {[%clk 0:02:56]} 9. cxb4 {[%clk 0:02:57]}  Ne4 {[%clk 0:02:56]} 10. Nc3 {[%clk 0:02:39]}  Qf6 {[%clk 0:02:55]} 11. Nge2 {[%clk 0:02:34]}  b6 {[%clk 0:02:53]} 12. O-O {[%clk 0:02:11]}  bxc5 {[%clk 0:02:51]} 13. Nxe4 {[%clk 0:02:09]}  dxe4 {[%clk 0:02:50]} 14. bxc5 {[%clk 0:02:10]}  Be7 {[%clk 0:02:32]} 15. Rad1 {[%clk 0:02:05]}  e5 {[%clk 0:02:17]} 16. Bg3 {[%clk 0:02:02]}  Rb8 {[%clk 0:02:05]} 17. Rxd7 {[%clk 0:01:38]}  Kxd7 {[%clk 0:02:04]} 18. Qd5+ {[%clk 0:01:37]}  Kc7 {[%clk 0:02:03]} 19. Bxc6 {[%clk 0:01:37]}  Qxc6 {[%clk 0:01:34]} 20. Qxe5+ {[%clk 0:01:36]}  Kd7 {[%clk 0:01:31]} 21. Rd1+ {[%clk 0:01:36]} 1-0


[Site "https://www.chess.com"]

[Event "Titled Tuesday Blitz November 22 Early 2022"]
[White "Thorhallsson, Simon"]
[Black "Kleiman, Jake"]
[WhiteFideId "2310090"]
[BlackFideId "2020041"]
[WhiteElo "2109"]
[BlackElo "2588"]
[Result "0-1"]
[Round "09"]
[TimeControl "180+1"]
[Date "2022.11.23"]
[WhiteClock "0:00:10"]
[BlackClock "0:00:07"]

1. Nf3 {[%clk 0:03:00]}  Nf6 {[%clk 0:02:59]} 2. d4 {[%clk 0:03:00]}  e6 {[%clk 0:03:00]} 3. e3 {[%clk 0:03:00]}  d5 {[%clk 0:03:00]} 4. Bd3 {[%clk 0:03:00]}  c5 {[%clk 0:03:00]} 5. b3 {[%clk 0:02:59]}  Nc6 {[%clk 0:03:01]} 6. Bb2 {[%clk 0:02:57]}  Be7 {[%clk 0:03:01]} 7. dxc5 {[%clk 0:02:49]}  Bxc5 {[%clk 0:03:00]} 8. O-O {[%clk 0:02:48]}  O-O {[%clk 0:03:00]} 9. Nbd2 {[%clk 0:02:46]}  Qe7 {[%clk 0:02:47]} 10. a3 {[%clk 0:02:44]}  a5 {[%clk 0:02:40]} 11. Qe2 {[%clk 0:02:38]}  b6 {[%clk 0:02:35]} 12. e4 {[%clk 0:02:37]}  Bb7 {[%clk 0:02:28]} 13. e5 {[%clk 0:02:03]}  Nd7 {[%clk 0:02:26]} 14. g3 {[%clk 0:01:53]}  h6 {[%clk 0:02:12]} 15. Kg2 {[%clk 0:01:43]}  Rae8 {[%clk 0:02:11]} 16. Nh4 {[%clk 0:01:34]}  Bd4 {[%clk 0:01:51]} 17. Bxd4 {[%clk 0:01:27]}  Nxd4 {[%clk 0:01:50]} 18. Qg4 {[%clk 0:01:23]}  Qc5 {[%clk 0:01:32]} 19. Rfe1 {[%clk 0:00:59]}  Nxc2 {[%clk 0:01:12]} 20. Rec1 {[%clk 0:00:42]}  Nxa1 {[%clk 0:00:48]} 21. Rxc5 {[%clk 0:00:41]}  Nxc5 {[%clk 0:00:49]} 22. Bb1 {[%clk 0:00:37]}  Naxb3 {[%clk 0:00:43]} 23. Nxb3 {[%clk 0:00:36]}  Nxb3 {[%clk 0:00:44]} 24. Qd1 {[%clk 0:00:37]}  Nc5 {[%clk 0:00:41]} 25. Qc2 {[%clk 0:00:37]}  d4+ {[%clk 0:00:40]} 26. Kh3 {[%clk 0:00:37]}  Be4 {[%clk 0:00:40]} 27. Qd1 {[%clk 0:00:36]}  Bxb1 {[%clk 0:00:40]} 28. Qxb1 {[%clk 0:00:37]}  d3 {[%clk 0:00:37]} 29. Nf3 {[%clk 0:00:37]}  Rd8 {[%clk 0:00:35]} 30. Nd2 {[%clk 0:00:37]}  Rb8 {[%clk 0:00:33]} 31. Qb5 {[%clk 0:00:36]}  Rfd8 {[%clk 0:00:32]} 32. Kg2 {[%clk 0:00:35]}  h5 {[%clk 0:00:32]} 33. h4 {[%clk 0:00:30]}  Rd5 {[%clk 0:00:32]} 34. Qc6 {[%clk 0:00:25]}  b5 {[%clk 0:00:26]} 35. Qc7 {[%clk 0:00:22]}  Ra8 {[%clk 0:00:20]} 36. Qc6 {[%clk 0:00:20]}  Rb8 {[%clk 0:00:17]} 37. Qc7 {[%clk 0:00:20]}  Rbd8 {[%clk 0:00:16]} 38. Qxa5 {[%clk 0:00:19]}  g6 {[%clk 0:00:12]} 39. Qxb5 {[%clk 0:00:19]}  Ne4 {[%clk 0:00:12]} 40. Qb4 {[%clk 0:00:19]}  Nxd2 {[%clk 0:00:08]} 41. Qxd2 {[%clk 0:00:18]}  Rxe5 {[%clk 0:00:08]} 42. Kf3 {[%clk 0:00:18]}  Re2 {[%clk 0:00:07]} 43. Qd1 {[%clk 0:00:18]}  Ra2 {[%clk 0:00:07]} 44. a4 {[%clk 0:00:18]}  d2 {[%clk 0:00:07]} 45. Ke2 {[%clk 0:00:18]}  Ra3 {[%clk 0:00:05]} 46. f3 {[%clk 0:00:12]}  Rc3 {[%clk 0:00:05]} 47. a5 {[%clk 0:00:10]}  Rc1 {[%clk 0:00:05]} 48. Qxd2 {[%clk 0:00:09]}  Rxd2+ {[%clk 0:00:06]} 49. Kxd2 {[%clk 0:00:10]}  Ra1 {[%clk 0:00:06]} 50. a6 {[%clk 0:00:10]}  Rxa6 {[%clk 0:00:07]} 0-1


[Site "https://www.chess.com"]